bitfinex-derivatives/quotes_BTCF0:USTF0_20240829
["timestamp","ask_amount","ask_price","bid_price","bid_amount"]
[1724893990423,0.00025306,59253.0,59252.0,0.675048]
[1724893990625,0.00025306,59253.0,59252.0,1.277048]
[1724893991124,0.00025306,59253.0,59252.0,0.677048]
[1724893991626,0.00025306,59253.0,59252.0,0.170728]
[1724893991927,0.00025306,59253.0,59252.0,0.086364]
[1724893995036,0.08461506,59253.0,59252.0,0.002]
[1724893996030,0.44541506,59253.0,59252.0,0.002]
[1724893996225,0.36105306,59253.0,59252.0,0.002]
[1724893996733,0.36505306,59253.0,59249.0,0.084367]
[1724893996927,0.084369,59249.0,59242.0,0.084378]
[1724893997229,0.29,59243.0,59242.0,0.084378]
[1724893997427,0.29,59243.0,59241.0,0.00025306]
[1724893998029,0.29857939,59243.0,59241.0,0.00025306]
[1724893998534,0.36168,59246.0,59241.0,0.00025306]
[1724893998730,0.3608,59246.0,59241.0,0.00025306]
[1724893998926,0.18048997,59245.0,59241.0,0.00025306]
[1724893999732,0.37,59247.0,59246.0,0.084372]
[1724893999931,0.40034459,59247.0,59246.0,0.084372]
[1724894000233,0.36105306,59253.0,59246.0,0.084372]
[1724894000527,0.37,59252.0,59245.0,0.3608]
[1724894000727,0.37829814,59252.0,59245.0,0.3608]
[1724894001033,0.003,59247.0,59245.0,0.3608]
[1724894001422,0.09266314,59252.0,59245.0,0.3608]
[1724894001928,0.29,59249.0,59245.0,0.3608]
[1724894002134,0.3608,59247.0,59241.0,0.00025306]
[1724894002328,0.18441487,59248.0,59241.0,0.00025306]
[1724894002629,0.374368,59249.0,59241.0,0.00025306]
[1724894002630,0.54521487,59246.0,59241.0,0.00025306]
[1724894002937,0.29,59242.0,59241.0,0.00025306]
[1724894003232,0.91099841,59242.0,59226.0,0.4452]
[1724894003434,0.29,59234.0,59229.0,0.084396]
[1724894005226,0.7216,59230.0,59203.0,0.3608]
[1724894005430,0.29,59208.0,59203.0,0.3608]
[1724894005631,0.29850698,59208.0,59203.0,0.3608]
[1724894006237,0.29,59214.0,59203.0,0.445233]
[1724894006433,0.29,59214.0,59208.0,0.3608]
[1724894007525,0.29,59214.0,59208.0,0.3738]
[1724894007723,0.32175284,59214.0,59208.0,0.3738]
[1724894007926,0.32175284,59214.0,59209.0,0.0622]
[1724894008927,0.03175284,59214.0,59209.0,0.0622]
[1724894009130,0.03175284,59214.0,59210.0,0.0637]
[1724894009826,0.001,59214.0,59210.0,0.0637]
[1724894010030,0.001,59214.0,59213.0,0.3608]
[1724894011545,0.001,59214.0,59213.0,0.951859]
[1724894013236,0.03048372,59218.0,59214.0,0.084418]
[1724894013436,0.084409,59220.0,59214.0,0.084418]
[1724894014444,0.001,59218.0,59214.0,0.087418]
[1724894014843,0.001,59218.0,59215.0,0.084416]
[1724894015139,0.11557224,59220.0,59217.0,0.3608]
[1724894015338,0.03116324,59220.0,59217.0,0.3608]
[1724894015534,0.03116324,59220.0,59219.0,0.084411]
[1724894016432,0.03016324,59220.0,59219.0,0.084411]
[1724894016638,0.00025328,59222.0,59221.0,0.084408]
[1724894017731,0.02996029,59222.0,59221.0,0.084408]
[1724894017943,0.02996029,59222.0,59221.0,0.087408]
[1724894028246,0.11436629,59222.0,59221.0,0.087408]
[1724894028450,0.02996029,59222.0,59221.0,0.087408]
[1724894031259,0.11436629,59222.0,59221.0,0.003]
[1724894031447,0.19877229,59222.0,59221.0,0.003]
[1724894031641,0.11436629,59222.0,59221.0,0.003]
[1724894032548,0.084408,59221.0,59211.0,0.32064]
[1724894032849,0.084417,59215.0,59211.0,0.32064]
[1724894033054,0.0927344,59215.0,59211.0,0.32064]
[1724894033358,0.084417,59215.0,59211.0,0.32064]
[1724894033548,0.084418,59214.0,59211.0,0.32064]
[1724894033950,0.08442,59213.0,59209.0,0.146624]
[1724894034255,0.08442,59213.0,59211.0,0.003]
[1724894034656,0.3608,59216.0,59210.0,0.084423]
[1724894034855,0.001,59214.0,59211.0,0.003]
[1724894035253,0.001,59214.0,59213.0,0.084419]
[1724894037154,0.03013387,59216.0,59214.0,0.084418]
[1724894037355,0.46378408,59217.0,59214.0,0.084418]
[1724894037554,0.09274407,59217.0,59214.0,0.084418]
[1724894037952,0.09274407,59217.0,59215.0,0.084416]
[1724894038360,0.001,59216.0,59215.0,0.084416]
[1724894039059,0.12358179,59217.0,59215.0,0.084416]
[1724894039661,0.12358179,59217.0,59216.0,0.084415]
[1724894040163,0.03916779,59217.0,59216.0,0.084415]
[1724894040557,0.03816779,59217.0,59216.0,0.084415]
[1724894040758,0.084409,59221.0,59213.0,0.0666]
[1724894041260,0.001,59217.0,59213.0,0.0666]
[1724894041462,0.00940401,59217.0,59213.0,0.0666]
[1724894041662,0.001,59217.0,59213.0,0.0666]
[1724894041851,0.11633875,59221.0,59213.0,0.0666]
[1724894042163,0.11633875,59221.0,59219.0,0.08441]
[1724894042859,0.11633875,59221.0,59220.0,0.084409]
[1724894043575,0.001,59217.0,59216.0,0.084414]
[1724894043868,0.29945591,59217.0,59216.0,0.084414]
[1724894044069,0.29,59217.0,59214.0,0.084417]
[1724894044265,0.48397279,59217.0,59201.0,0.3608]
[1724894044466,0.084419,59213.0,59208.0,0.084426]
[1724894044857,0.067,59212.0,59208.0,0.084426]
[1724894045264,0.067,59212.0,59207.0,0.3608]
[1724894045567,0.29,59208.0,59207.0,0.3608]
[1724894046957,0.067,59212.0,59209.0,0.084425]
[1724894047361,0.09686033,59212.0,59209.0,0.084425]
[1724894047860,0.09786033,59212.0,59209.0,0.084425]
[1724894048259,0.09686033,59212.0,59209.0,0.084425]
[1724894048460,0.09786033,59212.0,59209.0,0.084425]
[1724894049565,0.03086033,59212.0,59209.0,0.084425]
[1724894052361,0.03086033,59212.0,59211.0,0.445222]
[1724894053264,0.03086033,59212.0,59211.0,0.084422]
[1724894054763,0.001,59212.0,59211.0,0.084422]
[1724894054957,0.001,59212.0,59211.0,0.445222]
[1724894063576,0.001,59212.0,59197.0,0.32064]
[1724894063577,1.66205548,59212.0,59197.0,0.32064]
[1724894063769,0.29,59199.0,59198.0,0.1292]
[1724894064165,0.29,59199.0,59198.0,0.213641]
[1724894065280,0.291,59199.0,59198.0,0.213641]
[1724894067777,0.40515764,59199.0,59198.0,0.1292]
[1724894069877,0.40415764,59199.0,59198.0,0.1292]
[1724894070082,0.40515764,59199.0,59198.0,0.1292]
[1724894073875,0.40515764,59199.0,59196.0,0.3608]
[1724894073876,0.084442,59197.0,59196.0,0.3608]
[1724894074183,0.084452,59190.0,59185.0,0.084459]
[1724894074487,0.084455,59189.0,59184.0,0.084461]
[1724894074684,0.084455,59188.0,59184.0,0.084461]
[1724894074882,0.6508,59190.0,59184.0,0.084461]
[1724894074883,0.084456,59187.0,59184.0,0.084461]
[1724894075386,0.084458,59186.0,59183.0,0.3608]
[1724894076179,0.29,59184.0,59179.0,0.197]
[1724894076386,0.29826439,59184.0,59179.0,0.197]
[1724894076592,0.29826439,59184.0,59177.0,0.08447]
[1724894077390,0.29926439,59184.0,59177.0,0.08447]
[1724894077893,0.084464,59182.0,59177.0,0.08447]
[1724894079098,0.084464,59182.0,59175.0,0.0634]
[1724894079592,0.085464,59182.0,59175.0,0.0634]
[1724894079997,0.084465,59181.0,59179.0,0.084468]
[1724894080581,0.001,59182.0,59175.0,0.147873]
[1724894080787,0.29,59176.0,59175.0,0.0634]
[1724894080995,0.29,59176.0,59174.0,0.68296]
[1724894080996,0.084474,59175.0,59174.0,0.00152]
[1724894081191,0.29,59176.0,59165.0,0.68144]
[1724894081395,0.374482,59169.0,59165.0,0.3608]
[1724894082089,0.084484,59168.0,59165.0,0.3608]
[1724894082292,0.084486,59166.0,59165.0,0.3608]
[1724894082495,0.3608,59167.0,59153.0,0.3608]
[1724894082696,0.084495,59160.0,59153.0,0.4265]
[1724894083392,0.084496,59159.0,59153.0,0.511005]
[1724894084892,0.084496,59159.0,59153.0,0.4265]
[1724894085796,0.29,59162.0,59153.0,0.4265]
[1724894085989,0.001,59159.0,59154.0,0.084503]
[1724894086188,0.001,59159.0,59153.0,0.4265]
[1724894086189,0.001,59159.0,59155.0,0.084502]
[1724894086894,0.32050946,59162.0,59155.0,0.084502]
[1724894087096,0.40600146,59162.0,59155.0,0.084502]
[1724894088690,0.40500146,59162.0,59155.0,0.084502]
[1724894088897,0.001,59159.0,59155.0,0.445302]
[1724894089097,0.001,59159.0,59156.0,0.0845]
[1724894089293,0.40500146,59162.0,59156.0,0.0845]
[1724894089493,0.40600146,59162.0,59156.0,0.0845]
[1724894090004,0.001,59159.0,59156.0,0.0845]
[1724894090200,0.001,59159.0,59157.0,0.084499]
[1724894090604,0.001,59159.0,59158.0,0.084498]
[1724894092189,0.32246947,59162.0,59155.0,0.72312]
[1724894092391,0.32150946,59162.0,59161.0,0.445294]
[1724894092799,0.32050946,59162.0,59161.0,0.445294]
[1724894093392,0.32050946,59162.0,59161.0,0.084494]
[1724894093598,0.32150946,59162.0,59161.0,0.445294]
[1724894096399,0.40600246,59162.0,59157.0,0.084498]
[1724894096599,0.40600246,59162.0,59155.0,0.3608]
[1724894096600,0.084497,59159.0,59155.0,0.3608]
[1724894096807,0.084504,59154.0,59153.0,0.0657]
[1724894097101,0.084511,59150.0,59148.0,0.1317]
[1724894097295,0.38313634,59150.0,59148.0,0.1317]
[1724894097800,0.38313634,59150.0,59148.0,0.4925]
[1724894098705,0.41396837,59150.0,59148.0,0.4925]
[1724894099296,0.41496837,59150.0,59148.0,0.4925]
[1724894100497,0.03183203,59150.0,59148.0,0.4925]
[1724894100702,0.03183203,59150.0,59149.0,0.084511]
[1724894100894,0.03183203,59150.0,59148.0,0.4587]
[1724894101101,0.084511,59149.0,59148.0,0.0979]
[1724894101612,0.084516,59145.0,59141.0,0.0649]
[1724894101904,0.29,59145.0,59141.0,0.0649]
[1724894102298,0.6508,59145.0,59141.0,0.0649]
[1724894102906,0.6508,59145.0,59134.0,0.0648]
[1724894102907,0.32626073,59144.0,59134.0,0.0648]
[1724894103096,0.29,59138.0,59134.0,0.0648]
[1724894103498,0.29,59138.0,59135.0,0.08453]
[1724894103705,0.084519,59143.0,59135.0,0.3608]
[1724894103895,0.13712,59142.0,59137.0,0.084527]
[1724894104095,0.084519,59143.0,59137.0,0.084527]
[1724894105202,0.32074976,59144.0,59139.0,0.084525]
[1724894105400,0.31974976,59144.0,59140.0,0.084523]
[1724894105601,0.45686976,59144.0,59140.0,0.084523]
[1724894107109,0.45686976,59144.0,59136.0,0.148929]
[1724894107312,0.29,59138.0,59136.0,0.0644]
[1724894107507,0.374527,59138.0,59136.0,0.0644]
[1724894108906,0.374527,59138.0,59136.0,0.05604]
[1724894109118,0.00866605,59137.0,59136.0,0.05604]
[1724894110301,0.00866605,59137.0,59135.0,0.3608]
[1724894110302,0.084528,59137.0,59135.0,0.3608]
[1724894110505,0.09300621,59137.0,59135.0,0.3608]
[1724894111007,0.09300621,59137.0,59134.0,0.0648]
[1724894111604,0.00847821,59137.0,59134.0,0.0648]
[1724894111802,0.68219546,59138.0,59134.0,0.149332]
[1724894112110,0.68131546,59138.0,59134.0,0.149332]
[1724894112311,0.68986982,59138.0,59134.0,0.149332]
[1724894113720,0.084529,59136.0,59134.0,0.0648]
[1724894114115,0.69074982,59138.0,59134.0,0.0648]
[1724894114311,0.68986982,59138.0,59134.0,0.0648]
[1724894114817,0.68986982,59138.0,59134.0,0.149332]
[1724894115517,0.68986982,59138.0,59134.0,0.0648]
[1724894115819,0.084528,59137.0,59134.0,0.0648]
[1724894116712,0.69074982,59138.0,59134.0,0.0648]
[1724894116915,0.68986982,59138.0,59134.0,0.149331]
[1724894117617,0.32906982,59138.0,59134.0,0.149331]
[1724894118613,0.28676473,59138.0,59137.0,0.06737974]
[1724894118824,0.28676473,59138.0,59134.0,0.149331]
[1724894119020,0.28676473,59138.0,59137.0,0.06727114]
[1724894119412,0.28676473,59138.0,59136.0,0.06727114]
[1724894119924,0.28676473,59138.0,59134.0,0.510131]
[1724894119925,0.28676473,59138.0,59137.0,0.06727114]
[1724894120129,0.28776473,59138.0,59137.0,0.06727114]
[1724894120418,0.28776473,59138.0,59136.0,0.06727114]
[1724894121818,0.28776473,59138.0,59135.0,0.15180114]
[1724894122011,0.084531,59135.0,59134.0,0.42807114]
[1724894122217,0.084534,59133.0,59131.0,0.03678974]
[1724894122417,0.29,59132.0,59126.0,0.08422467]
[1724894122617,0.084549,59122.0,59121.0,0.09306961]
[1724894122922,0.62084295,59122.0,59114.0,0.4899]
[1724894123224,0.62084295,59122.0,59114.0,0.4267]
[1724894123225,0.061,59121.0,59114.0,0.4267]
[1724894123422,0.29,59119.0,59114.0,0.51126]
[1724894123722,0.29,59119.0,59114.0,0.15046]
[1724894123917,0.14561959,59122.0,59114.0,0.15046]
[1724894123918,0.00845959,59122.0,59116.0,0.3608]
[1724894124125,0.45711541,59124.0,59121.0,0.3608]
[1724894124624,0.46540903,59124.0,59121.0,0.3608]
[1724894125114,0.001,59122.0,59121.0,0.3608]
[1724894125611,0.46628903,59124.0,59121.0,0.3608]
[1724894125927,0.32924903,59124.0,59121.0,0.3608]
[1724894126314,0.001,59122.0,59121.0,0.3608]
[1724894126711,0.001,59122.0,59116.0,0.445357]
[1724894126927,0.69092903,59124.0,59116.0,0.445357]
[1724894127126,0.29,59119.0,59116.0,0.3608]
[1724894128218,0.3608,59117.0,59112.0,0.147763]
[1724894128815,0.445356,59117.0,59112.0,0.147763]
[1724894129422,0.806156,59117.0,59112.0,0.147763]
[1724894129819,0.29,59113.0,59112.0,0.0632]
[1724894130016,0.29,59113.0,59108.0,0.146769]
[1724894130216,0.3608,59110.0,59108.0,0.146769]
[1724894130417,0.3608,59110.0,59109.0,0.084568]
[1724894130620,0.36272,59117.0,59108.0,0.0622]
[1724894130924,0.39163586,59117.0,59112.0,0.084563]
[1724894131524,0.39063586,59117.0,59112.0,0.084563]
[1724894131924,0.02983586,59117.0,59114.0,0.084561]
[1724894132224,0.001,59117.0,59115.0,0.0673]
[1724894132726,0.3618,59117.0,59115.0,0.0673]
[1724894136324,0.3618,59117.0,59116.0,0.084558]
[1724894137327,0.0307559,59121.0,59115.0,0.0673]
[1724894137633,0.001,59117.0,59116.0,0.084558]
[1724894138835,0.001,59117.0,59115.0,0.0673]
[1724894138836,0.39148277,59122.0,59121.0,0.084551]
[1724894140332,0.00829177,59131.0,59122.0,0.50744]
[1724894140526,0.00829177,59131.0,59130.0,0.084538]
[1724894140725,0.39082711,59134.0,59122.0,0.1262]
[1724894141224,0.39951226,59134.0,59122.0,0.12645373]
[1724894141734,0.39951226,59134.0,59129.0,0.084539]
[1724894142033,0.084535,59132.0,59129.0,0.084539]
[1724894142239,0.004,59131.0,59130.0,0.084538]
[1724894142738,0.27005161,59134.0,59130.0,0.084538]
[1724894143033,0.084535,59132.0,59130.0,0.084538]
[1724894143225,0.087535,59132.0,59130.0,0.084538]
[1724894143429,0.087535,59132.0,59127.0,0.3608]
[1724894144335,0.087535,59132.0,59128.0,0.08454]
[1724894144930,0.29,59133.0,59128.0,0.08454]
[1724894145233,0.29,59133.0,59129.0,0.084539]
[1724894145436,0.27305161,59134.0,59129.0,0.084539]
[1724894145826,0.27305161,59134.0,59130.0,0.084538]
[1724894146032,0.002,59132.0,59130.0,0.084538]
[1724894146731,0.04171226,59134.0,59130.0,0.084538]
[1724894147835,0.04171226,59134.0,59128.0,0.0655]
[1724894147836,0.29,59132.0,59127.0,0.3608]
[1724894148032,0.6508,59132.0,59122.0,0.12645373]
[1724894148237,0.29,59125.0,59122.0,0.12645373]
[1724894148539,0.374546,59125.0,59122.0,0.21100273]
[1724894149833,0.291,59125.0,59123.0,0.084547]
[1724894150536,0.001,59125.0,59123.0,0.084547]
[1724894150740,0.001,59125.0,59122.0,0.12845373]
[1724894151438,0.02994951,59125.0,59123.0,0.002]
[1724894151739,0.084542,59127.0,59123.0,0.002]
[1724894151935,0.084544,59126.0,59122.0,0.21100273]
[1724894152238,0.084546,59124.0,59122.0,0.00225373]
[1724894152629,0.19571556,59123.0,59122.0,0.00025373]
[1724894154235,0.28026356,59123.0,59122.0,0.00025373]
[1724894154433,0.64106356,59123.0,59122.0,0.00225373]
[1724894154943,0.64106356,59123.0,59122.0,0.00025373]
[1724894155134,0.64206356,59123.0,59122.0,0.00225373]
[1724894156140,0.67259772,59123.0,59122.0,0.00225373]
[1724894156736,0.68529158,59123.0,59122.0,0.00225373]
[1724894157442,0.67259772,59123.0,59122.0,0.00225373]
[1724894160346,0.31179772,59123.0,59122.0,0.00225373]
[1724894160546,0.22724972,59123.0,59122.0,0.00225373]
[1724894160744,0.31179772,59123.0,59122.0,0.00225373]
[1724894161045,0.67259772,59123.0,59122.0,1e-08]
[1724894163042,0.31179772,59123.0,59122.0,1e-08]
[1724894165548,0.11608216,59123.0,59122.0,1e-08]
[1724894167846,0.47688216,59123.0,59122.0,1e-08]
[1724894169451,0.39233416,59123.0,59118.0,0.084554]
[1724894169755,0.29,59119.0,59115.0,0.3608]
[1724894169956,0.084562,59114.0,59112.0,0.1244]
[1724894170150,0.29,59113.0,59108.0,0.084569]
[1724894170947,0.29,59113.0,59109.0,0.084567]
[1724894171256,0.01269658,59114.0,59113.0,0.084562]
[1724894171459,0.3608,59115.0,59108.0,0.3608]
[1724894171460,0.3608,59115.0,59114.0,0.084561]
[1724894172155,0.00025373,59119.0,59118.0,0.084555]
[1724894172353,0.03026573,59119.0,59118.0,0.084555]
[1724894172551,0.00025373,59119.0,59118.0,0.084555]
[1724894174460,0.00125373,59119.0,59118.0,0.084555]
[1724894176562,0.00125373,59119.0,59115.0,0.0606]
[1724894176563,0.37580773,59119.0,59115.0,0.0606]
[1724894176861,0.3608,59117.0,59108.0,0.3608]
[1724894177061,0.29,59110.0,59108.0,0.3608]
[1724894177260,0.29,59110.0,59107.0,0.062]
[1724894177459,0.29,59110.0,59106.0,0.0617]
[1724894177959,0.445371,59107.0,59103.0,0.0634]
[1724894178166,0.084572,59106.0,59103.0,0.0634]
[1724894180359,0.374575,59104.0,59103.0,0.0634]
[1724894180552,0.38296488,59104.0,59103.0,0.0634]
[1724894181954,0.38396488,59104.0,59103.0,0.0634]
[1724894182257,0.00938988,59104.0,59103.0,0.0634]
[1724894183054,0.001,59104.0,59103.0,0.4242]
[1724894183653,0.001,59104.0,59103.0,0.147976]
[1724894184763,0.03203918,59104.0,59103.0,0.147976]
[1724894184960,0.03203918,59104.0,59103.0,0.0634]
[1724894185157,0.12506939,59104.0,59099.0,0.084581]
[1724894185356,0.29,59103.0,59098.0,0.0609]
[1724894185557,0.00840018,59102.0,59098.0,0.0609]
[1724894186353,0.29,59103.0,59098.0,0.0609]
[1724894186761,0.38425317,59103.0,59098.0,0.0609]
[1724894187365,0.084578,59102.0,59098.0,0.0609]
[1724894187560,0.29967617,59103.0,59098.0,0.0609]
[1724894187561,0.31237375,59103.0,59098.0,0.0609]
[1724894187867,0.084588,59095.0,59094.0,0.00164]
[1724894188160,0.31404273,59095.0,59088.0,0.1248]
[1724894188363,0.084593,59092.0,59088.0,0.1248]
[1724894188754,0.084587,59096.0,59088.0,0.1248]
[1724894188957,0.084584,59098.0,59092.0,0.084592]
[1724894189166,0.3608,59099.0,59088.0,0.1248]
[1724894189367,0.001,59102.0,59098.0,0.3608]
[1724894189666,0.09325417,59103.0,59098.0,0.3608]
[1724894189864,0.09325417,59103.0,59099.0,0.1281]
[1724894190271,0.09325417,59103.0,59100.0,0.0635]
[1724894190475,0.16812256,59104.0,59100.0,0.0635]
[1724894190765,0.3608,59104.0,59100.0,0.0635]
[1724894191063,0.001,59102.0,59100.0,0.0635]
[1724894191565,0.084582,59099.0,59098.0,0.3608]
[1724894191765,0.084582,59099.0,59093.0,0.08459]
[1724894192164,0.445382,59099.0,59093.0,0.08459]
[1724894192971,0.084585,59097.0,59090.0,0.084595]
[1724894194670,0.084591,59093.0,59088.0,0.51264]
[1724894194867,0.084591,59093.0,59088.0,0.597238]
[1724894195271,0.084591,59093.0,59089.0,0.3608]
[1724894196384,0.085591,59093.0,59089.0,0.3608]
[1724894196871,0.084592,59092.0,59089.0,0.3608]
[1724894197078,0.084594,59091.0,59089.0,0.3608]
[1724894197383,0.084595,59090.0,59089.0,0.3608]
[1724894197677,0.084598,59088.0,59083.0,0.084605]
[1724894197880,0.29025373,59091.0,59085.0,0.084602]
[1724894198081,0.00025373,59091.0,59087.0,0.3608]
[1724894198267,0.00025373,59091.0,59087.0,0.445399]
[1724894198473,0.00025373,59091.0,59088.0,0.084598]
[1724894199671,0.00025373,59091.0,59090.0,0.084595]
[1724894200375,0.00125373,59091.0,59090.0,0.084595]
[1724894201371,0.00849073,59103.0,59098.0,0.084582]
[1724894201566,0.084581,59100.0,59099.0,0.0627]
[1724894201776,0.084581,59100.0,59099.0,0.147282]
[1724894202771,0.084581,59100.0,59099.0,0.0627]
[1724894203172,0.084581,59100.0,59099.0,0.147282]
[1724894203372,0.084581,59100.0,59099.0,0.0627]
[1724894203674,0.084582,59099.0,59096.0,0.084586]
[1724894205078,0.085582,59099.0,59096.0,0.086586]
[1724894206880,0.085582,59099.0,59096.0,0.002]
[1724894207685,0.001,59099.0,59097.0,0.084585]
[1724894207878,0.29847768,59103.0,59097.0,0.084585]
[1724894208179,0.08458,59101.0,59100.0,0.3608]
[1724894208385,0.08458,59101.0,59096.0,0.002]
[1724894208386,0.084583,59099.0,59096.0,0.002]
[1724894209978,0.084585,59097.0,59096.0,0.002]
[1724894210286,0.084585,59097.0,59095.0,0.3608]
[1724894210789,0.084585,59097.0,59096.0,0.002]
[1724894211380,0.085585,59097.0,59095.0,0.3628]
[1724894213175,0.001,59097.0,59096.0,0.002]
[1724894213781,0.001,59097.0,59095.0,0.3628]
[1724894214379,0.084584,59098.0,59096.0,0.002]
[1724894214579,0.001,59097.0,59096.0,0.002]
[1724894215275,0.001,59097.0,59095.0,0.3628]
[1724894215481,0.085585,59097.0,59095.0,0.3628]
[1724894215689,0.084586,59096.0,59095.0,0.002]
[1724894215984,0.27498092,59096.0,59095.0,0.002]
[1724894216386,0.084588,59095.0,59094.0,0.00025373]
[1724894216780,0.084589,59094.0,59083.0,0.5434]
[1724894216980,0.084596,59089.0,59083.0,0.628004]
[1724894217181,0.084596,59089.0,59083.0,0.54496]
[1724894217785,0.082596,59089.0,59084.0,0.084603]
[1724894218985,0.28137832,59092.0,59084.0,0.084603]
[1724894219178,0.084597,59089.0,59084.0,0.084603]
[1724894219686,0.084598,59088.0,59084.0,0.084603]
[1724894221485,0.085598,59088.0,59084.0,0.084603]
[1724894221886,0.0846,59087.0,59084.0,0.084603]
[1724894222083,0.084602,59086.0,59083.0,0.54496]
[1724894222286,0.084602,59086.0,59083.0,0.5434]
[1724894224200,0.085602,59086.0,59083.0,0.5434]
[1724894224893,0.11601045,59086.0,59083.0,0.5434]
[1724894225998,0.03140845,59086.0,59083.0,0.5434]
[1724894230995,0.03140845,59086.0,59083.0,0.1826]
[1724894233787,0.03140845,59086.0,59084.0,0.084603]
[1724894243406,0.03140845,59086.0,59082.0,0.03739641]
[1724894243407,0.16921,59083.0,59082.0,0.03739641]
[1724894243608,0.084624,59070.0,59063.0,0.405273]
[1724894243795,0.3608,59064.0,59063.0,0.084633]
[1724894244097,0.3608,59064.0,59062.0,0.084635]
[1724894244300,0.29,59063.0,59057.0,0.5413]
[1724894244608,0.29,59063.0,59037.0,0.084671]
[1724894244609,0.084644,59056.0,59049.0,0.32064]
[1724894244795,0.3608,59050.0,59046.0,0.084658]
[1724894245198,0.3608,59050.0,59044.0,0.1847]
[1724894245500,0.3608,59050.0,59049.0,0.084654]
[1724894245905,0.01270816,59057.0,59056.0,0.084644]
[1724894246197,0.36105395,59058.0,59057.0,0.084642]
[1724894247207,0.39133854,59058.0,59057.0,0.084642]
[1724894247501,0.03153854,59058.0,59057.0,0.084642]
[1724894247803,0.03153854,59058.0,59057.0,1.192602]
[1724894248199,0.03153854,59058.0,59057.0,1.313502]
[1724894249006,0.00125395,59058.0,59057.0,1.313502]
[1724894249202,0.3608,59066.0,59065.0,0.084631]
[1724894249611,0.39066242,59066.0,59065.0,0.084631]
[1724894251406,0.39066242,59066.0,59065.0,0.094631]
[1724894252013,0.39066242,59066.0,59065.0,0.084631]
[1724894252313,0.39066242,59066.0,59065.0,0.094631]
[1724894253603,0.39066242,59066.0,59065.0,0.084631]
[1724894253805,0.39166242,59066.0,59065.0,0.094631]
[1724894256215,0.084612,59078.0,59066.0,0.084629]
[1724894256520,0.3608,59084.0,59083.0,0.084605]
[1724894257219,0.39204858,59084.0,59083.0,0.084605]
[1724894257416,0.39204858,59084.0,59078.0,0.00025395]
[1724894257417,0.084611,59079.0,59078.0,0.00025395]
[1724894257718,0.445411,59079.0,59078.0,0.00025395]
[1724894258217,2.03064875,59079.0,59061.0,0.271336]
[1724894258415,2.03064875,59079.0,59061.0,0.271337]
[1724894258416,0.3608,59062.0,59061.0,0.271337]
[1724894258809,0.00092,59069.0,59068.0,0.084627]
[1724894259018,0.084617,59075.0,59072.0,0.08462]
[1724894259611,0.02995556,59075.0,59066.0,0.29]
[1724894259818,0.3608,59077.0,59067.0,0.084628]
[1724894260118,0.3608,59077.0,59075.0,0.084615]
[1724894260319,0.3608,59077.0,59076.0,0.084615]
[1724894261421,0.39089273,59077.0,59076.0,0.084615]
[1724894262224,0.39089273,59077.0,59067.0,0.01]
[1724894262225,0.084627,59068.0,59067.0,0.01]
[1724894262430,0.445427,59068.0,59067.0,0.01]
[1724894263614,0.445427,59068.0,59059.0,0.00025395]
[1724894263813,0.445427,59068.0,59060.0,0.084637]
[1724894263814,0.3608,59063.0,59060.0,0.084637]
[1724894264219,0.3608,59063.0,59061.0,0.084636]
[1724894265220,0.3608,59063.0,59062.0,0.084635]
[1724894265614,0.3618,59063.0,59062.0,0.084635]
[1724894265915,0.001,59063.0,59062.0,0.084635]
[1724894266316,0.084635,59062.0,59061.0,0.013]
[1724894267215,0.084635,59062.0,59061.0,0.014]
[1724894267421,0.071635,59062.0,59061.0,0.014]
[1724894267616,0.071635,59062.0,59059.0,0.08489295]
[1724894267814,0.072635,59062.0,59061.0,0.014]
[1724894268221,0.071635,59062.0,59059.0,0.08489295]
[1724894268419,0.15727,59062.0,59061.0,0.013]
[1724894268611,0.084638,59060.0,59059.0,0.00025395]
[1724894268817,0.169276,59060.0,59059.0,0.00025395]
[1724894269321,0.084638,59060.0,59059.0,0.00025395]
[1724894270422,0.001,59060.0,59059.0,0.01225395]
[1724894270622,0.03312336,59060.0,59059.0,0.01425395]
[1724894270813,0.002,59060.0,59059.0,0.01425395]
[1724894272318,0.002,59060.0,59059.0,0.09889295]
[1724894274125,0.086638,59060.0,59059.0,0.01425395]
[1724894275720,0.002,59060.0,59059.0,0.01425395]
[1724894276120,0.001,59060.0,59059.0,0.01325395]
[1724894276731,0.001,59060.0,59059.0,0.01225395]
[1724894277124,0.084635,59062.0,59059.0,0.01025395]
[1724894277324,0.084635,59062.0,59059.0,0.02425395]
[1724894277830,0.39144763,59063.0,59059.0,0.02425395]
[1724894277831,0.084638,59060.0,59059.0,0.02425395]
[1724894278233,0.39144763,59063.0,59059.0,0.02425395]
[1724894278628,0.47608263,59063.0,59059.0,0.02425395]
[1724894278828,0.39144763,59063.0,59059.0,0.02425395]
[1724894280125,0.001,59060.0,59059.0,0.10889295]
[1724894280833,0.47708163,59063.0,59059.0,0.09489295]
[1724894281037,0.084636,59062.0,59059.0,0.10889295]
[1724894281626,0.084636,59062.0,59059.0,0.09489295]
[1724894281827,0.001,59060.0,59059.0,0.10889295]
[1724894282629,0.085638,59060.0,59059.0,0.02425395]
[1724894283234,0.085638,59060.0,59059.0,0.01425395]
[1724894283426,0.084638,59060.0,59059.0,0.02425395]
[1724894283627,0.001,59062.0,59059.0,0.02425395]
[1724894284131,0.001,59062.0,59059.0,0.10889295]
[1724894284333,0.001,59060.0,59059.0,0.10889295]
[1724894284934,0.001,59060.0,59059.0,0.09889295]
[1724894285136,0.001,59060.0,59059.0,0.10889295]
[1724894287047,0.47700163,59063.0,59059.0,0.09489295]
[1724894287238,0.001,59062.0,59059.0,0.10889295]